[Event "Late-Titled-Tuesday-Blitz-April-16-2024"]
[Site "Chess.com"]
[Date "2024.04.16"]
[Round "4"]
[White "Durarbayli"]
[Black "EddieMarsalla"]
[Result "1-0"]
[WhiteElo "2887"]
[BlackElo "2583"]
[TimeControl "180+1"]
[EndTime "14:36:29 PDT"]
[Termination "Durarbayli won by resignation"]

1. e4 {[%clk 0:03:00.9]} 1... c5 {[%clk 0:02:58.6]} 2. Nf3 {[%clk 0:02:59.9]}
2... Nc6 {[%clk 0:02:58.9]} 3. Nc3 {[%clk 0:02:58]} 3... g6 {[%clk 0:02:54.5]}
4. d4 {[%clk 0:02:57.9]} 4... cxd4 {[%clk 0:02:47.1]} 5. Nxd4 {[%clk 0:02:58.8]}
5... Bg7 {[%clk 0:02:47]} 6. Be3 {[%clk 0:02:58.9]} 6... Nf6 {[%clk 0:02:44.6]}
7. Bc4 {[%clk 0:02:58.6]} 7... O-O {[%clk 0:02:41.7]} 8. Bb3 {[%clk 0:02:58.7]}
8... a5 {[%clk 0:02:37.7]} 9. O-O {[%clk 0:02:49.3]} 9... a4 {[%clk 0:02:34.7]}
10. Nxa4 {[%clk 0:02:47.3]} 10... Nxe4 {[%clk 0:02:29.1]} 11. Nb5 {[%clk
0:02:47]} 11... Ra6 {[%clk 0:02:25.6]} 12. Qe2 {[%clk 0:02:30.9]} 12... d6
{[%clk 0:02:22]} 13. Rad1 {[%clk 0:02:24.1]} 13... Bd7 {[%clk 0:01:47]} 14. c4
{[%clk 0:02:06.8]} 14... Qb8 {[%clk 0:01:35.7]} 15. Nb6 {[%clk 0:02:01.8]} 15...
Be6 {[%clk 0:01:31.5]} 16. Nd5 {[%clk 0:01:46.9]} 16... Bxd5 {[%clk 0:01:11.3]}
17. cxd5 {[%clk 0:01:46.9]} 17... Ne5 {[%clk 0:01:11.8]} 18. Ba7 {[%clk
0:01:25.7]} 18... Rxa7 {[%clk 0:01:05.1]} 19. Nxa7 {[%clk 0:01:26.6]} 19... Nxf2
{[%clk 0:01:00.1]} 20. Qxf2 {[%clk 0:01:22.3]} 20... Ng4 {[%clk 0:00:54]} 21.
Qb6 {[%clk 0:01:20.2]} 21... Bh6 {[%clk 0:00:50.3]} 22. Rde1 {[%clk 0:01:16.3]}
22... Bd2 {[%clk 0:00:43.3]} 23. Re2 {[%clk 0:00:56.8]} 23... Bg5 {[%clk
0:00:43]} 24. Nb5 {[%clk 0:00:48.2]} 24... Rc8 {[%clk 0:00:42.9]} 25. h3 {[%clk
0:00:43.2]} 25... Ne5 {[%clk 0:00:37.7]} 26. Nc3 {[%clk 0:00:41.3]} 26... Rc5
{[%clk 0:00:34.9]} 27. Rxe5 {[%clk 0:00:33.6]} 27... Rc4 {[%clk 0:00:27.8]} 1-0

[Event "Late-Titled-Tuesday-Blitz-April-16-2024"]
[Site "Chess.com"]
[Date "2024.04.16"]
[Round "4"]
[White "Veleamater"]
[Black "Flawless_Fighter"]
[Result "0-1"]
[WhiteElo "2424"]
[BlackElo "2760"]
[TimeControl "180+1"]
[EndTime "14:36:34 PDT"]
[Termination "Flawless_Fighter won by resignation"]

1. g3 {[%clk 0:03:00.9]} 1... d5 {[%clk 0:02:59.4]} 2. Bg2 {[%clk 0:03:01.1]}
2... Nf6 {[%clk 0:02:58.9]} 3. d3 {[%clk 0:03:01.8]} 3... b6 {[%clk 0:02:58.8]}
4. Nf3 {[%clk 0:03:01.6]} 4... Bb7 {[%clk 0:02:59.3]} 5. O-O {[%clk 0:03:02.1]}
5... e6 {[%clk 0:02:59.9]} 6. Nc3 {[%clk 0:03:02.4]} 6... Be7 {[%clk 0:03:00.6]}
7. h3 {[%clk 0:03:02.3]} 7... O-O {[%clk 0:03:00.7]} 8. g4 {[%clk 0:03:02.6]}
8... c5 {[%clk 0:03:00.9]} 9. Nd2 {[%clk 0:03:01.3]} 9... Nc6 {[%clk 0:03:01.3]}
10. e4 {[%clk 0:03:01.3]} 10... dxe4 {[%clk 0:03:01]} 11. dxe4 {[%clk
0:02:59.8]} 11... e5 {[%clk 0:03:01.3]} 12. g5 {[%clk 0:02:57.3]} 12... Nd7
{[%clk 0:02:57.5]} 13. h4 {[%clk 0:02:57.6]} 13... f6 {[%clk 0:02:53]} 14. Nf3
{[%clk 0:02:55.6]} 14... Nd4 {[%clk 0:02:51.2]} 15. Nxd4 {[%clk 0:02:46.2]}
15... exd4 {[%clk 0:02:50.3]} 16. Nd5 {[%clk 0:02:46.3]} 16... fxg5 {[%clk
0:02:48.4]} 17. Nxe7+ {[%clk 0:02:45.1]} 17... Qxe7 {[%clk 0:02:49.3]} 18. Bxg5
{[%clk 0:02:44.6]} 18... Nf6 {[%clk 0:02:48.7]} 19. f3 {[%clk 0:02:43.9]} 19...
h6 {[%clk 0:02:48.5]} 20. Bd2 {[%clk 0:02:41.9]} 20... Nh5 {[%clk 0:02:48.1]}
21. Qe1 {[%clk 0:02:40.6]} 21... Rf7 {[%clk 0:02:42.2]} 22. f4 {[%clk
0:02:40.4]} 22... Raf8 {[%clk 0:02:42.4]} 23. f5 {[%clk 0:02:37.5]} 23... Re8
{[%clk 0:02:41.5]} 24. Qd1 {[%clk 0:02:35.9]} 24... Ng3 {[%clk 0:02:40.5]} 25.
Qg4 {[%clk 0:02:32]} 25... Nxf1 {[%clk 0:02:36.7]} 26. Rxf1 {[%clk 0:02:31]}
26... Rf6 {[%clk 0:02:26.3]} 27. e5 {[%clk 0:02:17.5]} 27... Rf7 {[%clk
0:02:17.8]} 28. e6 {[%clk 0:01:58.6]} 28... Rf6 {[%clk 0:02:15.6]} 29. Bxb7
{[%clk 0:01:56.9]} 29... Qxb7 {[%clk 0:02:16.5]} 30. Bg5 {[%clk 0:01:56.4]}
30... hxg5 {[%clk 0:02:09.3]} 31. hxg5 {[%clk 0:01:56.2]} 31... Rfxe6 {[%clk
0:01:42.6]} 32. fxe6 {[%clk 0:01:56.3]} 32... Qe7 {[%clk 0:01:42.6]} 33. Re1
{[%clk 0:01:11.3]} 33... Rf8 {[%clk 0:01:39]} 34. Kg2 {[%clk 0:01:07.7]} 34...
g6 {[%clk 0:01:37.9]} 35. Kg3 {[%clk 0:01:05.3]} 35... Rf5 {[%clk 0:01:37.9]}
36. Kh4 {[%clk 0:01:04.1]} 36... c4 {[%clk 0:01:25.9]} 37. Re4 {[%clk 0:01:04]}
37... d3 {[%clk 0:01:25]} 38. cxd3 {[%clk 0:01:04.1]} 38... cxd3 {[%clk
0:01:25.9]} 39. Rf4 {[%clk 0:01:02.3]} 39... Rxf4 {[%clk 0:01:21.3]} 40. Qxf4
{[%clk 0:01:02.5]} 40... Qxe6 {[%clk 0:01:21.8]} 41. Qb8+ {[%clk 0:01:00.9]}
41... Kg7 {[%clk 0:01:21.5]} 42. Qc7+ {[%clk 0:01:00.6]} 42... Qf7 {[%clk
0:01:20.8]} 43. Qe5+ {[%clk 0:01:00.7]} 43... Kh7 {[%clk 0:01:20.5]} 44. Qd4
{[%clk 0:00:57.2]} 44... Qf5 {[%clk 0:01:14.9]} 45. Qd6 {[%clk 0:00:54.3]} 45...
Qe4+ {[%clk 0:01:05.3]} 46. Kg3 {[%clk 0:00:53.9]} 46... Qe3+ {[%clk 0:01:05.7]}
47. Kg4 {[%clk 0:00:53.1]} 47... Qe2+ {[%clk 0:01:05.8]} 48. Kf4 {[%clk
0:00:51.9]} 48... Qh2+ {[%clk 0:01:04.7]} 0-1

[Event "Late-Titled-Tuesday-Blitz-April-16-2024"]
[Site "Chess.com"]
[Date "2024.04.16"]
[Round "4"]
[White "expii"]
[Black "Akhayan"]
[Result "0-1"]
[WhiteElo "2215"]
[BlackElo "2400"]
[TimeControl "180+1"]
[EndTime "14:36:34 PDT"]
[Termination "Akhayan won on time"]

1. e4 {[%clk 0:02:57.7]} 1... e5 {[%clk 0:02:59.6]} 2. Nf3 {[%clk 0:02:55.6]}
2... Nc6 {[%clk 0:02:59.2]} 3. Bb5 {[%clk 0:02:52.5]} 3... a6 {[%clk 0:02:59]}
4. Ba4 {[%clk 0:02:49.3]} 4... Nf6 {[%clk 0:02:59.1]} 5. d4 {[%clk 0:02:41.6]}
5... exd4 {[%clk 0:02:58.5]} 6. O-O {[%clk 0:02:37.4]} 6... b5 {[%clk
0:02:54.5]} 7. Bb3 {[%clk 0:02:27.8]} 7... Be7 {[%clk 0:02:55.1]} 8. e5 {[%clk
0:02:24]} 8... Ne4 {[%clk 0:02:53.9]} 9. Nxd4 {[%clk 0:02:16.7]} 9... Nc5 {[%clk
0:02:49.6]} 10. Nxc6 {[%clk 0:02:14.1]} 10... dxc6 {[%clk 0:02:49.2]} 11. Qxd8+
{[%clk 0:02:02.8]} 11... Bxd8 {[%clk 0:02:49.6]} 12. Be3 {[%clk 0:02:00.2]}
12... Nxb3 {[%clk 0:02:49]} 13. axb3 {[%clk 0:01:56.5]} 13... O-O {[%clk
0:02:49.4]} 14. Nc3 {[%clk 0:01:50]} 14... Be7 {[%clk 0:02:46.5]} 15. Rad1
{[%clk 0:01:47.5]} 15... Bf5 {[%clk 0:02:43]} 16. Rd2 {[%clk 0:01:40.3]} 16...
h6 {[%clk 0:02:39.8]} 17. Ne2 {[%clk 0:01:34.1]} 17... c5 {[%clk 0:02:36.5]} 18.
b4 {[%clk 0:01:29]} 18... cxb4 {[%clk 0:02:18.9]} 19. Nd4 {[%clk 0:01:19.1]}
19... Be6 {[%clk 0:02:14.1]} 20. Nxe6 {[%clk 0:01:18.4]} 20... fxe6 {[%clk
0:02:13.9]} 21. Rd7 {[%clk 0:01:12.9]} 21... Bg5 {[%clk 0:01:59.9]} 22. Bxg5
{[%clk 0:01:03.8]} 22... hxg5 {[%clk 0:01:59.9]} 23. Rxc7 {[%clk 0:01:04.3]}
23... Rac8 {[%clk 0:02:00]} 24. Ra7 {[%clk 0:01:01]} 24... Rxc2 {[%clk
0:01:57.5]} 25. Rxa6 {[%clk 0:01:00.9]} 25... Kf7 {[%clk 0:01:47.6]} 26. Rb6
{[%clk 0:00:46.3]} 26... Rxb2 {[%clk 0:01:45.7]} 27. Rxb5 {[%clk 0:00:45.8]}
27... Rd8 {[%clk 0:01:42.9]} 28. f4 {[%clk 0:00:31.3]} 28... Rdd2 {[%clk
0:01:36.1]} 29. fxg5+ {[%clk 0:00:25.4]} 29... Kg6 {[%clk 0:01:36.7]} 30. Rc1
{[%clk 0:00:21.5]} 30... Rxg2+ {[%clk 0:01:36]} 31. Kf1 {[%clk 0:00:21.9]} 31...
Rxh2 {[%clk 0:01:33.8]} 32. Kg1 {[%clk 0:00:20.5]} 32... Rbg2+ {[%clk
0:01:31.9]} 33. Kf1 {[%clk 0:00:20.8]} 33... Rh1+ {[%clk 0:01:29]} 34. Kxg2
{[%clk 0:00:20.8]} 34... Rxc1 {[%clk 0:01:29.6]} 35. Rxb4 {[%clk 0:00:21.3]}
35... Kxg5 {[%clk 0:01:29.2]} 36. Rb7 {[%clk 0:00:21.4]} 36... g6 {[%clk
0:01:28.6]} 37. Rf7 {[%clk 0:00:18.3]} 37... Rc5 {[%clk 0:01:26]} 38. Kf3 {[%clk
0:00:18.4]} 38... Rxe5 {[%clk 0:01:25.6]} 39. Re7 {[%clk 0:00:19.3]} 39... Kf6
{[%clk 0:01:24.7]} 40. Re8 {[%clk 0:00:18.9]} 40... Ra5 {[%clk 0:01:22.9]} 41.
Rf8+ {[%clk 0:00:16.9]} 41... Kg7 {[%clk 0:01:22.7]} 42. Re8 {[%clk 0:00:06.9]}
42... Kf7 {[%clk 0:01:23]} 0-1

[Event "Late-Titled-Tuesday-Blitz-April-16-2024"]
[Site "Chess.com"]
[Date "2024.04.16"]
[Round "4"]
[White "JoakimVonAnd"]
[Black "Licancabur"]
[Result "1-0"]
[WhiteElo "2692"]
[BlackElo "2454"]
[TimeControl "180+1"]
[EndTime "14:36:37 PDT"]
[Termination "JoakimVonAnd won on time"]

1. d4 {[%clk 0:02:56.1]} 1... d5 {[%clk 0:02:59.6]} 2. Nf3 {[%clk 0:02:55.8]}
2... Nf6 {[%clk 0:02:59]} 3. g3 {[%clk 0:02:55.2]} 3... Bg4 {[%clk 0:02:56]} 4.
Bg2 {[%clk 0:02:55.2]} 4... e6 {[%clk 0:02:56.1]} 5. O-O {[%clk 0:02:51.3]} 5...
Nbd7 {[%clk 0:02:55.6]} 6. c4 {[%clk 0:02:50.2]} 6... c6 {[%clk 0:02:54.9]} 7.
Nc3 {[%clk 0:02:49]} 7... Be7 {[%clk 0:02:54.1]} 8. h3 {[%clk 0:02:47.6]} 8...
Bh5 {[%clk 0:02:53.5]} 9. cxd5 {[%clk 0:02:48]} 9... exd5 {[%clk 0:02:52.8]} 10.
Ne5 {[%clk 0:02:48.5]} 10... Nxe5 {[%clk 0:02:26.9]} 11. dxe5 {[%clk 0:02:47.3]}
11... Nd7 {[%clk 0:02:27.5]} 12. f4 {[%clk 0:02:47.7]} 12... Qb6+ {[%clk
0:02:09.7]} 13. Kh2 {[%clk 0:02:45.6]} 13... f5 {[%clk 0:01:52.2]} 14. exf6
{[%clk 0:02:20.9]} 14... Nxf6 {[%clk 0:01:49]} 15. g4 {[%clk 0:02:20.3]} 15...
Bxg4 {[%clk 0:01:42.8]} 16. hxg4 {[%clk 0:02:19.7]} 16... Nxg4+ {[%clk
0:01:43.4]} 17. Kg3 {[%clk 0:02:16.6]} 17... h5 {[%clk 0:01:42.7]} 18. Qd3
{[%clk 0:02:13.9]} 18... O-O-O {[%clk 0:01:17.5]} 19. Bh3 {[%clk 0:02:12.7]}
19... Rdf8 {[%clk 0:01:05.6]} 20. Be3 {[%clk 0:01:55.7]} 20... Qd8 {[%clk
0:00:52.8]} 21. Bxa7 {[%clk 0:01:43.9]} 21... g6 {[%clk 0:00:29]} 22. Rac1
{[%clk 0:01:38]} 22... Rf5 {[%clk 0:00:28.3]} 23. e4 {[%clk 0:01:25.4]} 23...
dxe4 {[%clk 0:00:22.6]} 24. Qxe4 {[%clk 0:01:26.3]} 24... Qd2 {[%clk 0:00:18.6]}
25. Qe6+ {[%clk 0:01:03.8]} 25... Qd7 {[%clk 0:00:11.6]} 26. Qxd7+ {[%clk
0:01:02.7]} 26... Kxd7 {[%clk 0:00:11.8]} 27. Rcd1+ {[%clk 0:01:02.9]} 27... Ke8
{[%clk 0:00:11.3]} 28. Rfe1 {[%clk 0:01:03.1]} 28... Kf7 {[%clk 0:00:10.1]} 29.
Rd7 {[%clk 0:01:02.3]} 29... Re8 {[%clk 0:00:10.7]} 30. Ne4 {[%clk 0:00:57.3]}
1-0

[Event "Late-Titled-Tuesday-Blitz-April-16-2024"]
[Site "Chess.com"]
[Date "2024.04.16"]
[Round "4"]
[White "th3d4rkness"]
[Black "IsuruAlahakoon"]
[Result "0-1"]
[WhiteElo "2144"]
[BlackElo "2439"]
[TimeControl "180+1"]
[EndTime "14:36:45 PDT"]
[Termination "IsuruAlahakoon won by checkmate"]

1. e4 {[%clk 0:03:00.9]} 1... d5 {[%clk 0:02:59.5]} 2. exd5 {[%clk 0:03:00.1]}
2... Qxd5 {[%clk 0:03:00.4]} 3. Nc3 {[%clk 0:03:00.5]} 3... Qa5 {[%clk
0:03:00.8]} 4. Bc4 {[%clk 0:02:59.4]} 4... Nf6 {[%clk 0:03:00.9]} 5. Nge2 {[%clk
0:02:57.4]} 5... Bg4 {[%clk 0:03:01.1]} 6. f3 {[%clk 0:02:55.5]} 6... Bh5 {[%clk
0:02:58.3]} 7. Ng3 {[%clk 0:02:48]} 7... Bg6 {[%clk 0:02:58]} 8. d3 {[%clk
0:02:43.4]} 8... Nc6 {[%clk 0:02:57.7]} 9. O-O {[%clk 0:02:41.7]} 9... O-O-O
{[%clk 0:02:55.9]} 10. a3 {[%clk 0:02:32.6]} 10... e6 {[%clk 0:02:55]} 11. Kh1
{[%clk 0:02:32.1]} 11... Bd6 {[%clk 0:02:53.7]} 12. Nge4 {[%clk 0:02:27.7]}
12... Nxe4 {[%clk 0:02:46.8]} 13. Nxe4 {[%clk 0:02:26.2]} 13... Bxe4 {[%clk
0:02:31.4]} 14. fxe4 {[%clk 0:02:24.7]} 14... g5 {[%clk 0:02:30.3]} 15. Qh5
{[%clk 0:02:04.9]} 15... Ne5 {[%clk 0:02:03.8]} 16. Ba2 {[%clk 0:01:50.3]} 16...
h6 {[%clk 0:01:47.6]} 17. b4 {[%clk 0:01:43.7]} 17... Qa6 {[%clk 0:01:40.8]} 18.
Bb2 {[%clk 0:01:38.3]} 18... Rh7 {[%clk 0:01:31.8]} 19. Bb3 {[%clk 0:01:36.6]}
19... Ng6 {[%clk 0:01:16.5]} 20. g3 {[%clk 0:01:15.2]} 20... Be5 {[%clk
0:01:13.6]} 21. Bxe5 {[%clk 0:01:09.7]} 21... Nxe5 {[%clk 0:01:14.5]} 22. Qe2
{[%clk 0:01:04.2]} 22... g4 {[%clk 0:01:08.3]} 23. a4 {[%clk 0:00:48.2]} 23...
h5 {[%clk 0:01:07.3]} 24. b5 {[%clk 0:00:44.4]} 24... Qd6 {[%clk 0:01:06.8]} 25.
a5 {[%clk 0:00:33.3]} 25... h4 {[%clk 0:01:05.7]} 26. Kg2 {[%clk 0:00:26.5]}
26... Rdh8 {[%clk 0:00:55.6]} 27. Rh1 {[%clk 0:00:17.3]} 27... Qd4 {[%clk
0:00:45.6]} 28. Raf1 {[%clk 0:00:11.1]} 28... h3# {[%clk 0:00:41.8]} 0-1

[Event "Late-Titled-Tuesday-Blitz-April-16-2024"]
[Site "Chess.com"]
[Date "2024.04.16"]
[Round "4"]
[White "ContrVersia"]
[Black "ozates"]
[Result "1-0"]
[WhiteElo "2863"]
[BlackElo "2529"]
[TimeControl "180+1"]
[EndTime "14:36:46 PDT"]
[Termination "ContrVersia won on time"]

1. e4 {[%clk 0:03:00.9]} 1... c5 {[%clk 0:02:55]} 2. Nf3 {[%clk 0:03:01]} 2...
Nc6 {[%clk 0:02:55.3]} 3. Bb5 {[%clk 0:03:00.7]} 3... g6 {[%clk 0:02:55.2]} 4.
Bxc6 {[%clk 0:02:57.6]} 4... bxc6 {[%clk 0:02:56.1]} 5. O-O {[%clk 0:02:53.6]}
5... Bg7 {[%clk 0:02:56.5]} 6. Re1 {[%clk 0:02:53.7]} 6... Nh6 {[%clk
0:02:56.4]} 7. c3 {[%clk 0:02:46.8]} 7... O-O {[%clk 0:02:56.1]} 8. d4 {[%clk
0:02:45.7]} 8... cxd4 {[%clk 0:02:57]} 9. cxd4 {[%clk 0:02:45.7]} 9... d5 {[%clk
0:02:57.1]} 10. e5 {[%clk 0:02:45.5]} 10... f6 {[%clk 0:02:50.2]} 11. exf6
{[%clk 0:02:36.4]} 11... exf6 {[%clk 0:02:50.3]} 12. Nbd2 {[%clk 0:02:35.5]}
12... g5 {[%clk 0:02:50.1]} 13. Qc2 {[%clk 0:02:32.3]} 13... Bd7 {[%clk
0:02:42.9]} 14. Nb3 {[%clk 0:02:31.7]} 14... g4 {[%clk 0:02:34.8]} 15. Bxh6
{[%clk 0:02:24.6]} 15... Bxh6 {[%clk 0:02:34.2]} 16. Nfd2 {[%clk 0:02:24.2]}
16... f5 {[%clk 0:02:32.4]} 17. Nc5 {[%clk 0:02:23.2]} 17... Rf7 {[%clk
0:02:16.8]} 18. Nxd7 {[%clk 0:02:17.7]} 18... Qxd7 {[%clk 0:02:15.9]} 19. Nb3
{[%clk 0:02:18.2]} 19... f4 {[%clk 0:02:09.6]} 20. Nc5 {[%clk 0:02:13.6]} 20...
Qd8 {[%clk 0:02:05.6]} 21. Nd3 {[%clk 0:02:05.3]} 21... Qh4 {[%clk 0:01:29.2]}
22. Qxc6 {[%clk 0:01:59]} 22... Raf8 {[%clk 0:01:28.7]} 23. g3 {[%clk
0:01:34.1]} 23... Qh3 {[%clk 0:01:05.5]} 24. Nxf4 {[%clk 0:01:31.2]} 24... Bxf4
{[%clk 0:00:48.9]} 25. gxf4 {[%clk 0:01:31.1]} 25... Rxf4 {[%clk 0:00:49.8]} 26.
Qxd5+ {[%clk 0:01:30.6]} 26... Kh8 {[%clk 0:00:49.6]} 27. Re2 {[%clk 0:01:26.3]}
27... R4f5 {[%clk 0:00:16.8]} 28. Qg2 {[%clk 0:01:24.1]} 28... Qd3 {[%clk
0:00:16.4]} 29. Rae1 {[%clk 0:01:17.9]} 29... Qxd4 {[%clk 0:00:16.4]} 30. b3
{[%clk 0:01:18.1]} 30... h5 {[%clk 0:00:15.2]} 31. Qg3 {[%clk 0:01:11.9]} 31...
Qf6 {[%clk 0:00:14.8]} 32. Re8 {[%clk 0:01:05.8]} 32... Rf3 {[%clk 0:00:09]} 33.
Qe5 {[%clk 0:00:57.4]} 33... Qxe5 {[%clk 0:00:03.2]} 34. Rxf8+ {[%clk
0:00:57.5]} 34... Rxf8 {[%clk 0:00:01.1]} 35. Rxe5 {[%clk 0:00:58]} 1-0

[Event "Late-Titled-Tuesday-Blitz-April-16-2024"]
[Site "Chess.com"]
[Date "2024.04.16"]
[Round "4"]
[White "DanielNaroditsky"]
[Black "alexrustemov"]
[Result "1-0"]
[WhiteElo "3127"]
[BlackElo "2854"]
[TimeControl "180+1"]
[EndTime "14:36:47 PDT"]
[Termination "DanielNaroditsky won by resignation"]

1. e4 {[%clk 0:03:00.4]} 1... e6 {[%clk 0:03:00]} 2. d4 {[%clk 0:03:01]} 2... d5
{[%clk 0:03:00.4]} 3. e5 {[%clk 0:03:01]} 3... c5 {[%clk 0:03:00.3]} 4. Nf3
{[%clk 0:03:01.1]} 4... cxd4 {[%clk 0:02:59.5]} 5. Bd3 {[%clk 0:03:01.5]} 5...
Nc6 {[%clk 0:03:00]} 6. O-O {[%clk 0:03:02]} 6... Bc5 {[%clk 0:03:00.2]} 7. Nbd2
{[%clk 0:03:00.8]} 7... Nge7 {[%clk 0:03:00.3]} 8. Nb3 {[%clk 0:03:01]} 8... Bb6
{[%clk 0:03:00.2]} 9. Re1 {[%clk 0:03:01.1]} 9... h6 {[%clk 0:03:00.3]} 10. a4
{[%clk 0:03:00.6]} 10... Bd7 {[%clk 0:03:00.1]} 11. a5 {[%clk 0:02:59.1]} 11...
Nxa5 {[%clk 0:02:58.9]} 12. Nbxd4 {[%clk 0:02:53.3]} 12... a6 {[%clk 0:02:48.9]}
13. c3 {[%clk 0:02:50.8]} 13... Nac6 {[%clk 0:02:48.4]} 14. Be3 {[%clk
0:02:47.6]} 14... Bc7 {[%clk 0:02:35.9]} 15. Nxc6 {[%clk 0:02:37.2]} 15... Nxc6
{[%clk 0:02:35.4]} 16. Bc5 {[%clk 0:02:36.7]} 16... Bb6 {[%clk 0:02:30.8]} 17.
Bd6 {[%clk 0:02:28]} 17... Bc7 {[%clk 0:02:30.4]} 18. Ba3 {[%clk 0:02:28.5]}
18... Ne7 {[%clk 0:02:23.4]} 19. Nd4 {[%clk 0:02:25]} 19... O-O {[%clk
0:02:22.7]} 20. Qg4 {[%clk 0:02:08.2]} 20... Re8 {[%clk 0:02:17.4]} 21. Re3
{[%clk 0:01:52.7]} 21... Nf5 {[%clk 0:01:55.8]} 22. Nxf5 {[%clk 0:01:50.2]}
22... exf5 {[%clk 0:01:55.9]} 23. Bxf5 {[%clk 0:01:50.5]} 23... Bxf5 {[%clk
0:01:55.4]} 24. Qxf5 {[%clk 0:01:51.4]} 24... Qg5 {[%clk 0:01:46.4]} 25. Qd7
{[%clk 0:01:37.5]} 25... Bxe5 {[%clk 0:01:35.7]} 26. Rae1 {[%clk 0:01:37.5]}
26... Re6 {[%clk 0:01:22.1]} 27. Qxb7 {[%clk 0:01:11.8]} 27... Rae8 {[%clk
0:01:20.4]} 28. g3 {[%clk 0:00:55.3]} 28... d4 {[%clk 0:00:52.6]} 29. cxd4
{[%clk 0:00:52.5]} 29... Bxd4 {[%clk 0:00:50.6]} 30. Rxe6 {[%clk 0:00:52.7]}
30... fxe6 {[%clk 0:00:31.9]} 31. Qd7 {[%clk 0:00:45.5]} 31... Rb8 {[%clk
0:00:09.9]} 32. Qxd4 {[%clk 0:00:44.7]} 1-0

[Event "Late-Titled-Tuesday-Blitz-April-16-2024"]
[Site "Chess.com"]
[Date "2024.04.16"]
[Round "4"]
[White "jbking07"]
[Black "Aryan_Tamadon"]
[Result "1-0"]
[WhiteElo "2424"]
[BlackElo "2625"]
[TimeControl "180+1"]
[EndTime "14:36:49 PDT"]
[Termination "jbking07 won by resignation"]

1. e4 {[%clk 0:02:56.4]} 1... d5 {[%clk 0:02:57.5]} 2. exd5 {[%clk 0:02:52.2]}
2... Qxd5 {[%clk 0:02:58.4]} 3. Nc3 {[%clk 0:02:50.3]} 3... Qd6 {[%clk 0:02:59]}
4. Qe2 {[%clk 0:02:48.5]} 4... Nf6 {[%clk 0:02:59.6]} 5. b3 {[%clk 0:02:48.4]}
5... Nc6 {[%clk 0:03:00]} 6. Nb5 {[%clk 0:02:44.4]} 6... Qd8 {[%clk 0:03:00]} 7.
Bb2 {[%clk 0:02:44.3]} 7... a6 {[%clk 0:03:00.4]} 8. Na3 {[%clk 0:02:44.3]} 8...
e5 {[%clk 0:02:55.4]} 9. Nc4 {[%clk 0:02:41.3]} 9... Be6 {[%clk 0:02:51.8]} 10.
O-O-O {[%clk 0:02:36.1]} 10... Bd6 {[%clk 0:02:47.5]} 11. Nf3 {[%clk 0:02:31.3]}
11... O-O {[%clk 0:02:43]} 12. Nxd6 {[%clk 0:02:28.7]} 12... cxd6 {[%clk
0:02:41.9]} 13. h3 {[%clk 0:02:25.3]} 13... Rc8 {[%clk 0:02:40.5]} 14. Kb1
{[%clk 0:02:21]} 14... Qa5 {[%clk 0:02:41.1]} 15. Rc1 {[%clk 0:02:14.3]} 15...
Bf5 {[%clk 0:02:40.2]} 16. d3 {[%clk 0:02:13.2]} 16... Nd5 {[%clk 0:02:35.7]}
17. Qe1 {[%clk 0:02:10.3]} 17... Ncb4 {[%clk 0:02:27.9]} 18. a3 {[%clk
0:02:09.2]} 18... Rc6 {[%clk 0:02:06.3]} 19. Nh4 {[%clk 0:02:09]} 19... Be6
{[%clk 0:02:02.4]} 20. c4 {[%clk 0:02:08.8]} 20... Rfc8 {[%clk 0:02:02.4]} 21.
Qd2 {[%clk 0:01:57.1]} 21... Qb6 {[%clk 0:00:54.1]} 22. axb4 {[%clk 0:01:55.5]}
22... Nxb4 {[%clk 0:00:51.1]} 23. Nf3 {[%clk 0:01:48.9]} 23... a5 {[%clk
0:00:48.7]} 24. Bc3 {[%clk 0:01:42.6]} 24... f6 {[%clk 0:00:36]} 25. Be2 {[%clk
0:01:39.7]} 25... d5 {[%clk 0:00:34.9]} 26. Bxb4 {[%clk 0:01:39.2]} 26... axb4
{[%clk 0:00:33.2]} 27. Kb2 {[%clk 0:01:14.7]} 27... dxc4 {[%clk 0:00:23.5]} 28.
dxc4 {[%clk 0:01:13.6]} 28... Rd6 {[%clk 0:00:22.8]} 29. Qe3 {[%clk 0:01:12]}
29... Qa5 {[%clk 0:00:16.6]} 30. Ra1 {[%clk 0:01:11.7]} 30... Qc7 {[%clk
0:00:17.2]} 31. Rhd1 {[%clk 0:01:10.3]} 31... b5 {[%clk 0:00:17.1]} 32. Rxd6
{[%clk 0:01:07.6]} 32... Qxd6 {[%clk 0:00:18]} 33. Qd2 {[%clk 0:01:03]} 33...
Qc5 {[%clk 0:00:17.1]} 34. Rc1 {[%clk 0:00:58.1]} 34... Qxf2 {[%clk 0:00:13.1]}
35. cxb5 {[%clk 0:00:57.7]} 35... Rxc1 {[%clk 0:00:10.6]} 36. Kxc1 {[%clk
0:00:56.9]} 36... Bxb3 {[%clk 0:00:08.9]} 37. Bc4+ {[%clk 0:00:56.3]} 37... Bxc4
{[%clk 0:00:08.8]} 38. Qxf2 {[%clk 0:00:57.2]} 1-0